lending/lending_fUSD_20240120
["ID","MTS","AMOUNT","RATE_DAILY","PERIOD"]
[312326071,1705776632006,-310.75993629,0.00019562,2]
[312326072,1705776632017,-503.15006371,0.00019562,2]
[312326073,1705776632026,-109.11940151,0.00019663,2]
[312326074,1705776632037,-217.155412,0.00019663,2]
[312326075,1705776632045,-662.49230984,0.00019663,2]
[312326076,1705776632057,-497.6744771,0.00019663,2]
[312326077,1705776632066,-78.89909576,0.00019663,2]
[312326078,1705776632078,-574.44197502,0.00019663,2]
[312326079,1705776632089,-171.97680866,0.00019663,2]
[312326080,1705776632100,-1101.74064,0.00019663,2]
[312326081,1705776632111,-1087.78882352,0.00019663,2]
[312326082,1705776632122,-994.71117648,0.00019663,2]
[312326083,1705776632133,-610.18376816,0.00019663,2]
[312326084,1705776632144,-3600.1079601,0.00019663,2]
[312326085,1705776632157,-400.0,0.00019663,2]
[312326086,1705776632168,-604.7260143,0.00019663,2]
[312326087,1705776632179,-546.69999,0.00019663,2]
[312326088,1705776632190,-832.9,0.00019663,2]
[312326089,1705776632202,-301.48,0.00019663,2]
[312326090,1705776632214,-762.71,0.00019663,2]
[312326091,1705776632225,-440.0,0.00019663,2]
[312326092,1705776632236,-532.8,0.00019663,2]
[312326093,1705776632249,-444.0,0.00019663,2]
[312326094,1705776632270,-5451.18934855,0.00019663,2]
[312326095,1705776632281,-2514.34633528,0.00019664,2]
[312326096,1705776632291,-10460.81121904,0.00019664,2]
[312326097,1705776632301,-21366.9603311,0.00019665,2]
[312326098,1705776632311,-1224.46,0.00019758,2]
[312326099,1705776632320,-259.1,0.00019758,2]
[312326100,1705776632330,-483.32855374,0.0001976,2]
[312326101,1705776632346,-1328.82242148,0.0001976,2]
[312326102,1705776632356,-162.34847253,0.0001976,2]
[312326103,1705776632365,-471.07690695,0.0001976,2]
[312326104,1705776632374,-10.58665672,0.0001976,2]
[312326105,1705776632386,-164.3601338,0.0001976,2]
[312326106,1705776632395,-191.64869268,0.0001976,2]
[312326107,1705776632404,-1002.49117352,0.0001976,2]
[312326108,1705776637824,-851.18,0.0001976,2]
[312326109,1705776637837,-706.69769861,0.0001976,2]
[312326110,1705776637846,-331.03900139,0.0001976,2]
[312326111,1705776637858,-415.19,0.0001976,2]
[312326112,1705776637874,-670.472673,0.0001976,2]
[312326113,1705776637883,-155.0,0.0001976,2]
[312326114,1705776637893,-1948.44870117,0.00019764,2]
[312326115,1705776637902,-215.397955,0.00019846,2]
[312326116,1705776637911,-522.97068852,0.00019864,2]
[312326117,1705776637921,-376.60123401,0.00019864,2]
[312326118,1705776637930,-343.17836134,0.00019864,2]
[312326119,1705776637940,-155.39075037,0.00019865,2]
[312326120,1705776637950,-3785.41423625,0.00019865,2]
[312326121,1705776637960,-213.20943281,0.00019866,2]
[312326122,1705776637969,-3029.53701716,0.00019866,2]
[312326123,1705776637979,-317.43646122,0.00019866,2]
[312326124,1705776637989,-2020.53490244,0.00019866,2]
[312326125,1705776637998,-3675.87540521,0.00019866,2]
[312326126,1705776638008,-155.50156782,0.00019866,2]
[312326127,1705776638019,-1767.60331455,0.00019866,2]
[312326128,1705776638028,-157.07164556,0.00019866,2]
[312326129,1705776638038,-231.93292492,0.00019866,2]
[312326130,1705776638047,-940.48918206,0.00019866,2]
[312326131,1705776638056,-155.21024572,0.00019866,2]
[312326132,1705776638065,-155.27446598,0.00019866,2]
[312326133,1705776638074,-183.31693013,0.00019866,2]
[312326134,1705776638085,-155.51550435,0.00019866,2]
[312326135,1705776638094,-155.81497192,0.00019866,2]
[312326136,1705776638103,-360.8545052,0.00019866,2]
[312326137,1705776638111,-183.91154665,0.00019866,2]
[312326138,1705776638121,-155.26555109,0.00019866,2]
[312326139,1705776638129,-180.63689249,0.00019866,2]
[312326140,1705776638139,-155.17564555,0.0002,2]
[312326141,1705776638148,-161.78181938,0.0002,2]
[312326142,1705776638157,-224.16083161,0.0002,2]
[312326143,1705776638167,-346.04821517,0.0002,2]
[312326144,1705776638177,-155.95609402,0.0002,2]
[312326145,1705776638186,-157.13873394,0.0002,7]
[312326146,1705776638195,-19090.19,0.00020207,2]
[312326147,1705776638205,-760.46,0.00020212,2]
[312326148,1705776638214,-250.0,0.00020222,2]
[312326149,1705776638223,-325.54,0.0002024,2]
[312326150,1705776638232,-1397.9,0.00020254,2]
[312326151,1705776638241,-1000.0,0.00020362,2]
[312326152,1705776638250,-1363.32,0.00020376,2]
[312326153,1705776638260,-425.79,0.00020377,2]
[312326154,1705776638269,-425.79,0.00020399,2]
[312326156,1705776638278,-425.79,0.0002042,2]
[312326158,1705776638287,-157.35,0.00020426,2]
[312326160,1705776638296,-425.79,0.00020442,2]
[312326162,1705776638305,-425.79,0.00020463,2]
[312326164,1705776638314,-425.79,0.00020484,2]
[312326166,1705776638323,-425.79,0.00020506,2]
[312326168,1705776638332,-425.79,0.00020527,2]
[312326170,1705776638341,-2000.0,0.00020548,2]
[312326171,1705776638350,-425.79,0.00020549,2]
[312326173,1705776638360,-314.34,0.00020562,2]
[312326175,1705776638369,-425.79,0.0002057,2]
[312326177,1705776638378,-425.79,0.00020592,2]
[312326179,1705776638387,-425.79,0.00020613,2]
[312326181,1705776638396,-425.79,0.00020635,2]
[312326184,1705776638406,-157.35,0.00020639,2]
[312326186,1705776638415,-425.79,0.00020656,2]
[312326188,1705776638424,-425.79,0.00020678,2]
[312326189,1705776638433,-425.79,0.00020699,2]
[312326192,1705776638443,-150.11,0.00020717,2]
[312326193,1705776638453,-425.79,0.0002072,2]
[312326195,1705776638463,-425.79,0.00020742,2]
[312326197,1705776638473,-425.79,0.00020763,2]
[312326199,1705776638482,-425.79,0.00020785,2]
[312326201,1705776638491,-157.35,0.00020852,2]
[312326203,1705776638500,-150.11,0.00020934,2]
[312326205,1705776638510,-729.44024601,0.00021,2]
[312326207,1705776638521,-157.35,0.00021065,2]
[312326210,1705776638531,-150.11,0.0002115,2]
[312326211,1705776638539,-157.35,0.00021278,2]
[312326213,1705776638549,-150.11,0.00021367,2]
[312326215,1705776638559,-210.0,0.00021451,2]
[312326217,1705776638568,-157.35,0.00021491,2]
[312326219,1705776638577,-168.32402096,0.00021503,2]
[312326221,1705776638586,-150.11,0.00021584,2]
[312326223,1705776638595,-300.0,0.00021639,2]
[312326225,1705776638605,-10000.0,0.00021644,2]
[312326228,1705776638614,-150.11,0.000218,2]
[312326230,1705776638625,-1397.9,0.00021898,2]
[312326232,1705776638634,-250.0,0.000219,2]
[312326234,1705776638643,-250.0,0.00021918,2]
[312326236,1705776638652,-150.11,0.00022017,2]
[312326238,1705776638663,-205.0,0.00022076,2]
[312326240,1705776638673,-150.11,0.00022233,2]
[312326242,1705776638682,-500.0,0.00022244,2]
[312326244,1705776638691,-1326.35190746,0.0002231,2]
[312326246,1705776638700,-1326.35190746,0.0002231,2]
[312326248,1705776638710,-975.81541536,0.0002231,3]
[312326250,1705776638719,-155.0,0.00022344,2]
[312326252,1705776638728,-1337.23129359,0.00022444,2]
[312326254,1705776638737,-10000.0,0.00022445,2]
[312326256,1705776638746,-150.11,0.0002245,2]
[312326258,1705776638755,-881.7444,0.00022571,2]
[312326260,1705776638765,-455.5872,0.00022571,2]
[312326262,1705776638774,-7510.2338,0.00022571,2]
[312326264,1705776638783,-1003.2183,0.00022571,2]
[312326266,1705776638792,-6874.4139,0.00022571,2]
[312326268,1705776638801,-180.0,0.00022603,2]
[312326270,1705776638811,-178.2762401,0.0002261,2]
[312326272,1705776638821,-150.11,0.00022666,2]
[312326274,1705776638830,-155.64276988,0.00022669,2]
[312326276,1705776638839,-225.94720434,0.00022669,2]
[312326278,1705776638848,-203.29975543,0.0002267,2]
[312326280,1705776638857,-34534.0,0.00022671,2]
[312326282,1705776638866,-500.0,0.00022698,2]
[312326284,1705776638875,-1000.0,0.00022699,2]
[312326286,1705776638884,-3455.2444,0.00022699,2]
[312326288,1705776638894,-473.31306392,0.00022699,2]
[312326290,1705776638903,-10000.0,0.0002274,2]
[312326292,1705776638912,-732.13022021,0.00022789,2]
[312326294,1705776638921,-400.06896681,0.00022797,2]
[312326296,1705776638930,-309.727205,0.00022797,2]
[312326298,1705776638939,-1921.50475411,0.00022797,2]
[312326300,1705776638948,-232.92375042,0.00022797,2]
[312326302,1705776638957,-337.22386989,0.00022797,2]
[312326304,1705776638967,-975.73879934,0.00022797,2]
[312326306,1705776638976,-301.90910224,0.00022797,2]
[312326308,1705776638985,-155.0,0.00022797,2]
[312326310,1705776638994,-155.42586713,0.00022797,2]
[312326312,1705776639003,-155.19554991,0.00022797,2]
[312326314,1705776639012,-238.75253071,0.00022797,2]
[312326316,1705776639021,-913.69891953,0.00022797,2]
[312326318,1705776639031,-234.89781562,0.00022797,2]
[312326320,1705776639040,-1513.14775786,0.00022797,2]
[312326322,1705776639049,-336.95365617,0.00022797,2]
[312326324,1705776639058,-252.65442073,0.00022797,2]
[312326326,1705776639068,-6757.37432813,0.00022797,2]
[312326328,1705776639078,-156.52420165,0.00022797,2]
[312326330,1705776639090,-3993.77986982,0.00022798,2]
[312326332,1705776639099,-646.1423,0.00022798,2]
[312326334,1705776639108,-22079.37012431,0.00022799,2]
[312326336,1705776639122,-63360.85907277,0.00022799,2]
[312326339,1705776639135,-9677.23160292,0.00022799,2]
[312326341,1705776639144,-778.5798,0.00022799,2]
[312326343,1705776639153,-500.0,0.00022799,2]
[312326345,1705776639162,-62045.64391105,0.00022799,2]
[312326347,1705776639174,-182954.35608895,0.00022799,2]
[312326349,1705776639183,-523.8307,0.00022799,2]
[312326351,1705776639191,-103156.43748512,0.00022799,2]
[312326353,1705776639202,-8086.32661488,0.00022799,2]
[312326355,1705776639211,-184.13974983,0.000228,2]
[312326357,1705776639221,-2352.37335474,0.000228,2]
[312326359,1705776639230,-314.34,0.00022826,2]
[312326361,1705776639240,-150.11,0.00022883,2]
[312326363,1705776639249,-1000.0,0.00022898,5]
[312326365,1705776639258,-1000.0,0.00022898,5]
[312326367,1705776639267,-100656.71325542,0.000229,2]
[312326369,1705776639278,-25215.32529735,0.000229,2]
[312326372,1705776639290,-91367.04149855,0.000229,2]
[312326374,1705776639301,-115232.62039285,0.000229,2]
[312326376,1705776639312,-173433.34752434,0.000229,2]
[312326378,1705776639321,-156.35673846,0.000229,2]
[312326380,1705776639330,-1000.0,0.00022908,2]
[312326382,1705776639339,-849.7150499,0.00022973,2]
[312326384,1705776639348,-826.31972725,0.00022998,5]
[312326386,1705776639357,-944.36007763,0.00023,2]
[312326388,1705776639367,-300.0,0.00023008,2]
[312326390,1705776639376,-150.11,0.00023099,2]
[312326392,1705776639385,-10000.0,0.00023245,2]
[312326394,1705776639393,-500.0,0.00023246,2]
[312326396,1705776639403,-405.77712545,0.00023288,2]
[312326398,1705776639412,-150.11,0.00023316,2]
[312326400,1705776639421,-150.11,0.00023532,2]
[312326402,1705776639430,-1397.9,0.00023542,2]
[312326404,1705776639439,-293.0,0.00023596,2]
[312326406,1705776639448,-168.32402096,0.00023602,2]
[312326408,1705776639457,-150.11,0.00023749,2]
[312326410,1705776639466,-500.0,0.00023794,2]
[312326412,1705776639476,-150.11,0.00023965,2]
[312326414,1705776639486,-201.19102419,0.00024,2]
[312326416,1705776639495,-155.0,0.00024,2]
[312326418,1705776639504,-10000.0,0.00024046,2]
[312326420,1705776639513,-150.11,0.00024182,2]
[312326422,1705776639522,-167.0,0.00024297,2]
[312326424,1705776639531,-445.73,0.00024342,2]
[312326426,1705776639540,-150.11,0.00024398,2]
[312326428,1705776639549,-129414.78662138,0.000245,2]
[312326430,1705776639558,-12303.42922454,0.000245,2]
[312326432,1705776639567,-150.11,0.00024615,2]
[312326434,1705776639576,-250.0,0.00024658,2]
[312326436,1705776639585,-10000.0,0.00024847,2]
[312326438,1705776639594,-204.71458222,0.00025,2]
[312326440,1705776639603,-303.55478187,0.00025,2]
[312326442,1705776639612,-158.71925605,0.00025,2]
[312326444,1705776639621,-167.43304946,0.00025,2]
[312326446,1705776639631,-202.08717836,0.00025,2]
[312326448,1705776639640,-933.94016922,0.00025,2]
[312326450,1705776639649,-1249.31192892,0.00025,2]
[312326452,1705776639658,-1584.56156338,0.00025,2]
[312326454,1705776639667,-350.0,0.00025,3]
[312326456,1705776639676,-314.34,0.00025089,2]
[312326458,1705776639685,-167.0,0.00025099,2]
[312326460,1705776639694,-1397.9,0.00025186,2]
[312326462,1705776639703,-473.31306391,0.00025224,2]
[312326464,1705776639712,-1000.0,0.00025453,2]
[312326466,1705776639721,-168.32402096,0.00025702,2]
[312326468,1705776639730,-205.0,0.00025868,7]
[312326470,1705776639739,-185.63118467,0.000259,2]
[312326472,1705776639748,-167.0,0.00025901,2]
[312326474,1705776639757,-650.0,0.00026,2]
[312326476,1705776639766,-4206.27219885,0.00026,2]
[312326481,1705776639801,-1108.77575039,0.00026,2]
[312326483,1705776639814,-3368.08959021,0.00026,2]
[312326485,1705776639826,-1512.623474,0.00026,2]
[312326487,1705776639837,-1367.26571047,0.00026,2]
[312326490,1705776639860,-416.41116,0.00026,2]
[312326493,1705776639871,-2776.99734937,0.00026,2]
[312326496,1705776639895,-6151.73417236,0.00026,2]
[312326498,1705776639905,-5057.65627657,0.00026,2]
[312326500,1705776639916,-360.0,0.00026,2]
[312326501,1705776639928,-15490.51312908,0.00026,2]
[312326502,1705776639939,-20908.16940565,0.00026,2]
[312326503,1705776639948,-20908.16940565,0.00026,2]
[312326504,1705776639958,-20908.16940565,0.00026,2]
[312326505,1705776639967,-20908.16940565,0.00026,2]
[312326506,1705776639976,-20908.16940565,0.00026,2]
[312326507,1705776639986,-20908.16940565,0.00026,2]
[312326508,1705776639996,-20908.16940565,0.00026,2]
[312326509,1705776640005,-20908.16940565,0.00026,2]
[312326510,1705776640014,-408.00327068,0.00026,2]
[312326511,1705776640023,-408.00327068,0.00026,2]
[312326512,1705776640032,-408.00327068,0.00026,2]
[312326514,1705776640041,-999.98,0.0002607,2]
[312326516,1705776640051,-1000.0,0.0002607,2]
[312326518,1705776640060,-1008.53,0.0002607,2]
[312326520,1705776640069,-2211.47072714,0.0002638,2]
[312326522,1705776640079,-2070.94,0.00026575,2]
[312326524,1705776640090,-12888.99,0.00026575,2]
[312326526,1705776640099,-167.0,0.00026703,2]
[312326528,1705776640109,-740.29461507,0.00026804,2]
[312326529,1705776640118,-534.16831827,0.00026816,2]
[312326531,1705776640127,-155.0,0.00026816,2]
[312326534,1705776640137,-155.0,0.00026816,2]
[312326535,1705776640146,-1397.9,0.00026829,2]
[312326538,1705776640156,-155.0,0.00027,2]
[312326540,1705776640166,-413.17098043,0.00027,2]
[312326542,1705776640175,-187.18634131,0.00027117,2]
[312326544,1705776640184,-1560.98,0.00027123,2]
[312326547,1705776640193,-542.9635753,0.00027196,2]
[312326549,1705776640204,-155.0,0.00027196,2]
[312326552,1705776640213,-155.98532929,0.00027196,2]
[312326553,1705776640222,-350.66007833,0.00027196,2]
[312326555,1705776640232,-250.02290447,0.00027196,2]
[312326558,1705776640241,-263.27381778,0.00027196,2]
[312326559,1705776640251,-472.37771217,0.00027196,2]
[312326562,1705776640260,-240.33558274,0.00027197,2]
[312326564,1705776640270,-1124.63119894,0.00027197,2]
[312326566,1705776640279,-1254.8177837,0.00027197,2]
[312326567,1705776640288,-155.0,0.00027197,2]
[312326570,1705776640298,-155.0,0.00027197,2]
[312326572,1705776640307,-755.47818953,0.00027198,2]
[312326574,1705776640316,-155.0,0.00027198,2]
[312326576,1705776640325,-233.83861975,0.00027198,2]
[312326578,1705776640335,-310.50049061,0.00027198,2]
[312326580,1705776640344,-204.29770103,0.00027198,2]
[312326582,1705776640353,-538.58822261,0.00027198,2]
[312326584,1705776640362,-2780.53772112,0.00027199,2]
[312326586,1705776640371,-21452.65472652,0.000272,2]
[312326588,1705776640380,-156.35673844,0.00027317,2]
[312326590,1705776640389,-314.34,0.00027353,2]
[312326592,1705776640398,-155.0,0.00027397,2]
[312326594,1705776640407,-2891.1,0.00027397,2]
[312326596,1705776640416,-5632.93,0.00027397,2]
[312326598,1705776640425,-8000.0,0.000274,2]
[312326600,1705776640434,-252.52,0.000274,2]
[312326602,1705776640443,-252.52,0.000274,2]
[312326604,1705776640452,-252.52,0.000274,2]
[312326606,1705776640461,-252.52,0.000274,2]
[312326608,1705776640470,-252.52,0.000274,2]
[312326610,1705776640479,-252.52,0.000274,2]
[312326612,1705776640487,-252.52,0.000274,2]
[312326614,1705776640496,-252.52,0.000274,2]
[312326616,1705776640505,-2829.6428496,0.00027405,2]
[312326618,1705776640514,-6497.42259166,0.00027405,2]
[312326620,1705776640523,-167.0,0.00027505,2]
[312326622,1705776640532,-1022.25739114,0.00027523,6]
[312326624,1705776640540,-2135.48698423,0.00027523,6]
[312326626,1705776640549,-224.93954829,0.00027523,6]
[312326628,1705776640558,-362.35590026,0.00027523,6]
[312326630,1705776640567,-1399.05394913,0.0002756,6]
[312326632,1705776640578,-473.31306391,0.0002775,2]
[312326634,1705776640587,-168.32402096,0.00027801,2]
[312326636,1705776640596,-1000.0,0.00027998,2]
[312326638,1705776640604,-203.12390135,0.00028,2]
[312326640,1705776640614,-689.05942203,0.00028,2]
[312326642,1705776640623,-167.0,0.00028307,2]
[312326644,1705776640631,-325.54,0.00028336,2]
[312326646,1705776640640,-1397.9,0.00028473,2]
[312326648,1705776640649,-15291.5086771,0.00028501,6]
[312326650,1705776640658,-1036.82262454,0.00028501,7]
[312326652,1705776640667,-10745.24034538,0.00028501,7]
[312326654,1705776640676,-15191.71101692,0.00028501,7]
[312326656,1705776640685,-150.0,0.00028603,4]
[312326658,1705776640694,-155.0,0.00028767,2]
[312326660,1705776640702,-2891.1,0.00028767,2]
[312326662,1705776640711,-8000.0,0.000288,2]
[312326664,1705776640720,-29018.0,0.00029,3]
[312326666,1705776640729,-250.0,0.00029,2]
[312326668,1705776640738,-150.0,0.00029,2]
[312326670,1705776640747,-150.0,0.00029,2]
[312326672,1705776640756,-3000.0,0.00029,2]
[312326674,1705776640765,-3000.0,0.00029,2]
[312326676,1705776640775,-4878.6747,0.00029,2]
[312326678,1705776640784,-352.54,0.00029,2]
[312326679,1705776640793,-151.03074467,0.00029,2]
[312326681,1705776640802,-500.0,0.00029,2]
[312326683,1705776640811,-195.51,0.000292,2]
[312326685,1705776640820,-7024.17458464,0.00029274,6]
[312326687,1705776640830,-250.0,0.00029274,2]
[312326690,1705776640839,-150.0,0.00029548,2]
[312326692,1705776640849,-314.34,0.00029617,2]
[312326694,1705776640858,-205.0,0.0002966,13]
[312326696,1705776640867,-175.56419383,0.000298,2]
[312326698,1705776640876,-731.13762758,0.000298,2]
[312326700,1705776640885,-5000.0,0.00029899,2]
[312326702,1705776640894,-168.32402096,0.000299,2]
[312326704,1705776640903,-732.13022021,0.0002998,2]
[312326706,1705776640912,-252.52,0.00029989,2]
[312326707,1705776640921,-252.52,0.0002999,2]
[312326709,1705776640931,-6232.91,0.00029999,2]
[312326712,1705776640940,-6232.91,0.00029999,2]
[312326714,1705776640950,-6232.91,0.00029999,2]
[312326715,1705776640959,-6232.91,0.00029999,2]
[312326717,1705776640969,-6232.91,0.00029999,2]
[312326720,1705776640978,-6232.91,0.00029999,2]
[312326721,1705776640988,-6232.91,0.00029999,2]
[312326724,1705776640998,-6232.91,0.00029999,2]
[312326726,1705776641007,-6232.91,0.00029999,2]
[312326728,1705776641016,-6232.95,0.00029999,2]
[312326730,1705776641026,-187058.37256908,0.00029999,3]
[312326732,1705776641035,-100000.0,0.0003,2]
[312326734,1705776641044,-9641.46795832,0.0003,2]
[312326736,1705776641053,-308716.90476813,0.0003,4]
[312326738,1705776641063,-445.98483451,0.0003,4]
[312326740,1705776641075,-6857.62294565,0.0003,4]
[312326742,1705776641084,-8835.80672558,0.0003,4]
[312326744,1705776641093,-692.06285158,0.0003,2]
[312326746,1705776641102,-19017.19619234,0.0003,4]
[312326748,1705776641112,-1575.05989741,0.0003,4]
[312326750,1705776641121,-192.24957213,0.0003,2]
[312326752,1705776641129,-155.0,0.0003,2]
[312326754,1705776641139,-582.7666979,0.0003,2]
[312326756,1705776641148,-463.77018372,0.0003,4]
[312326758,1705776641157,-814.57679404,0.0003,4]
[312326760,1705776641167,-158.04,0.0003,2]
[312326762,1705776641176,-8000.0,0.000301,2]
[312326764,1705776641186,-2891.1,0.00030136,2]
[312326766,1705776641195,-153.84,0.00030137,2]
[312326768,1705776641203,-150.0,0.00030137,2]
[312326770,1705776641212,-155.0,0.00030137,2]
[312326772,1705776641221,-473.31306391,0.00030275,2]
[312326774,1705776641230,-156.0,0.000303,2]
[312326776,1705776641239,-1000.0,0.00030544,2]
[312326778,1705776641248,-150.0,0.0003093,2]
[312326780,1705776641258,-19378.14804912,0.00030999,3]
[312326782,1705776641267,-100000.0,0.00031,2]
[312326784,1705776641275,-153.84,0.0003105,2]
[312326786,1705776641285,-156.0,0.000314,2]
[312326787,1705776641294,-4000.0,0.000315,2]
[312326790,1705776641304,-2891.1,0.00031506,2]
[312326792,1705776641313,-306.55,0.00031507,2]
[312326794,1705776641322,-155.0,0.00031507,2]
[312326796,1705776641331,-197.4,0.00031644,2]
[312326798,1705776641340,-168.88314372,0.0003166,2]
[312326800,1705776641349,-403.0,0.00031662,2]
[312326802,1705776641358,-1220.031,0.00031662,2]
[312326804,1705776641367,-844.311,0.00031662,2]
[312326806,1705776641376,-1822.051,0.00031662,2]
[312326808,1705776641385,-1852.0,0.00031662,2]
[312326810,1705776641394,-835.0,0.00031662,2]
[312326812,1705776641403,-945.0,0.00031662,2]
[312326813,1705776641412,-1252.0,0.00031662,2]
[312326816,1705776641422,-724.018,0.00031662,2]
[312326818,1705776641431,-1323.172,0.00031662,2]
[312326820,1705776641440,-507.0,0.00031662,2]
[312326822,1705776641449,-235.0,0.00031662,2]
[312326823,1705776641458,-1138.0,0.00031662,2]
[312326825,1705776641467,-368.199,0.00031662,2]
[312326827,1705776641477,-849.028,0.00031662,2]
[312326829,1705776641486,-19688.0,0.00031662,2]
[312326831,1705776641495,-2903.0,0.00031662,2]
[312326834,1705776641505,-4956.291,0.00031662,2]
[312326836,1705776641514,-4170.0,0.00031662,2]
[312326838,1705776641523,-924.31,0.00031662,2]
[312326840,1705776641533,-36518.318,0.00031662,2]
[312326842,1705776641542,-2271.0,0.00031662,2]
[312326844,1705776641551,-150.0,0.00031662,2]
[312326864,1705776641724,-150.0,0.00031662,2]
[312326866,1705776641734,-1030.0,0.00031662,2]
[312326868,1705776641743,-150.0,0.00031662,2]
[312326870,1705776641752,-10860.0,0.00031685,5]
[312326872,1705776641762,-150.0,0.00031723,2]
[312326874,1705776641771,-4245.70602795,0.00031788,2]
[312326876,1705776641781,-61325.6722912,0.000318,2]
[312326879,1705776641790,-156.35673844,0.00031833,2]
[312326881,1705776641800,-44736.2602,0.00031864,3]
[312326883,1705776641809,-314.34,0.00031881,2]
[312326885,1705776641819,-5000.0,0.0003189,2]
[312326887,1705776641828,-153.84,0.00031963,2]
[312326889,1705776641837,-100000.0,0.00032,2]
[312326891,1705776641847,-297.99449653,0.00032,4]
[312326893,1705776641856,-3783.14260718,0.00032,4]
[312326895,1705776641866,-1000.0,0.000321,2]
[312326897,1705776641875,-357.87420369,0.0003218,2]
[312326899,1705776641884,-178.0,0.00032275,2]
[312326901,1705776641894,-657.81618824,0.000325,2]
[312326903,1705776641903,-150.0,0.00032516,2]
[312326905,1705776641912,-473.31306391,0.000328,2]
[312326907,1705776641922,-173.90448234,0.00032876,7]
[312326909,1705776641931,-2891.1,0.00032876,2]
[312326911,1705776641942,-250.0,0.00032876,2]
[312326913,1705776641951,-153.84,0.00032877,2]
[312326915,1705776641960,-570.88,0.00032877,15]
[312326917,1705776641969,-732.13022021,0.0003289,2]
[312326919,1705776641979,-8911.58136563,0.000329,2]
[312326921,1705776641990,-8911.58136545,0.000329,2]
[312326923,1705776641999,-8911.58136545,0.000329,2]
[312326925,1705776642008,-4000.0,0.000329,2]
[312326927,1705776642018,-8911.58136545,0.000329,2]
[312326929,1705776642027,-8911.58136545,0.000329,2]
[312326932,1705776642036,-8911.58136545,0.000329,2]
[312326934,1705776642045,-8911.58136545,0.000329,2]
[312326936,1705776642054,-8911.58136545,0.000329,2]
[312326938,1705776642063,-8911.58136545,0.000329,2]
[312326940,1705776642072,-8911.58136545,0.000329,2]
[312326942,1705776642082,-8911.58136545,0.000329,2]
[312326944,1705776642091,-8911.58136545,0.000329,2]
[312326946,1705776642100,-8911.58136545,0.000329,2]
[312326948,1705776642108,-8911.58136545,0.000329,2]
[312326950,1705776642117,-8911.58136545,0.000329,2]
[312326952,1705776642127,-8911.58136545,0.000329,2]
[312326954,1705776642136,-279.78010015,0.00032999,2]
[312326956,1705776642145,-100000.0,0.00033,3]
[312326958,1705776642155,-170.0,0.00033,2]
[312326960,1705776642165,-500.0,0.00033013,7]
[312326962,1705776642178,-750.0,0.0003315,7]
[312326964,1705776642187,-1416.0,0.00033168,5]
[312326966,1705776642197,-1009.74127183,0.00033287,7]
[312326968,1705776642207,-150.0,0.00033309,2]
[312326970,1705776642216,-205.0,0.00033453,19]
[312326972,1705776642225,-489.8044188,0.000335,4]
[312326974,1705776642235,-1050.76,0.000335,2]
[312326976,1705776642244,-1050.76,0.000335,2]
[312326978,1705776642253,-1050.76,0.000335,2]
[312326980,1705776642262,-1050.76,0.000335,2]
[312326982,1705776642271,-1050.76,0.000335,2]
[312326984,1705776642281,-1050.76,0.000335,2]
[312326986,1705776642290,-1050.76,0.000335,2]
[312326988,1705776642299,-1050.76,0.000335,2]
[312326990,1705776642308,-1050.76,0.000335,2]
[312326992,1705776642317,-1050.76,0.000335,2]
[312326994,1705776642326,-1050.76,0.000335,2]
[312326996,1705776642335,-1050.76,0.000335,2]
[312326998,1705776642344,-1050.76,0.000335,2]
[312327000,1705776642354,-1050.76,0.000335,2]
[312327002,1705776642363,-1050.76,0.000335,2]
[312327004,1705776642372,-1050.76,0.000335,2]